bitfinex-derivatives/quotes_BNBF0:USTF0_20250406
["timestamp","ask_amount","ask_price","bid_price","bid_amount"]
[1743912280685,1.10609652,591.92,591.19,0.28941216]
[1743912283290,0.812,591.92,591.19,0.28941216]
[1743912283593,0.29410895,591.91,591.19,0.28941216]
[1743912283786,0.29410895,591.91,591.18,1.26423726]
[1743912283986,0.29410895,591.91,591.19,0.28949764]
[1743912285492,0.606,591.9,591.19,0.28949764]
[1743912286595,0.29412386,591.89,591.19,0.28949764]
[1743912286795,0.29412386,591.89,591.01,0.28949764]
[1743912289297,0.606,591.9,591.01,0.28949764]
[1743912289793,0.606,591.9,590.98,0.28949764]
[1743912290597,0.29414997,591.89,590.98,0.28949764]
[1743912292295,0.606,591.9,590.98,0.28949764]
[1743912292498,0.606,591.9,590.94,0.28949764]
[1743912292698,0.606,591.9,590.95,0.28949764]
[1743912292893,0.606,591.9,590.94,0.28949764]
[1743912293099,0.606,591.9,590.95,0.28949764]
[1743912293297,0.606,591.9,590.94,0.28949764]
[1743912293594,0.29415494,591.89,590.96,0.29415494]
[1743912293793,0.29415494,591.89,590.97,0.28949764]
[1743912293994,0.29415494,591.89,590.96,0.29415494]
[1743912294198,0.29415494,591.89,590.97,0.28950513]
[1743912294701,0.29415494,591.89,590.96,0.29415494]
[1743912294896,0.29415494,591.89,590.97,0.28950404]
[1743912295301,0.606,591.9,590.97,0.28950404]
[1743912295501,0.606,591.9,590.93,0.28950404]
[1743912295703,0.29415618,591.88,590.96,0.29415618]
[1743912295905,0.29415618,591.88,591.0,1.26423726]
[1743912296206,0.29415618,591.88,591.01,0.28950404]
[1743912298405,0.606,591.9,591.0,0.28950404]
[1743912298599,0.606,591.9,591.01,0.28950404]
[1743912298804,0.606,591.9,591.0,0.28950404]
[1743912299001,0.606,591.9,591.01,0.28950404]
[1743912299203,0.606,591.9,591.0,0.28950404]
[1743912299608,0.29414748,591.89,591.0,0.28950404]
[1743912300709,0.29414748,591.89,591.02,1.26423726]
[1743912300903,0.29414748,591.89,591.03,0.28950404]
[1743912301309,0.606,591.9,591.03,0.28950404]
[1743912301608,0.29414375,591.88,591.03,0.28950404]
[1743912302109,0.29414375,591.88,591.02,1.26423726]
[1743912302305,0.29414375,591.88,591.03,0.28949696]
[1743912302705,0.29414375,591.88,591.04,1.26423726]
[1743912302911,0.29414375,591.88,591.05,0.28949696]
[1743912303810,0.29414375,591.88,591.04,1.26423726]
[1743912304008,0.29414375,591.88,591.05,0.2894967]
[1743912304310,0.606,591.9,591.05,0.2894967]
[1743912304510,0.606,591.9,591.05,1.55373396]
[1743912304710,0.29414126,591.87,591.06,0.2894967]
[1743912305712,0.29414126,591.87,591.05,1.26423726]
[1743912305918,0.29414126,591.87,591.06,0.2894977]
[1743912307008,0.29414126,591.87,591.03,0.2894977]
[1743912307211,0.29414126,591.87,591.04,0.2894977]
[1743912307411,0.606,591.9,591.03,0.2894977]
[1743912307607,0.29414375,591.86,591.04,0.2894977]
[1743912307812,0.29414375,591.86,591.05,0.2894977]
[1743912308015,0.29414375,591.86,591.03,0.2894977]
[1743912308313,0.29414375,591.86,591.04,0.2894977]
[1743912308514,0.29414375,591.86,591.03,0.2894977]
[1743912308814,0.29414375,591.86,591.04,0.2894977]
[1743912309112,0.29414375,591.86,591.05,0.28950626]
[1743912309316,0.29414375,591.86,591.04,0.28950626]
[1743912309511,0.29414375,591.86,591.05,0.28950626]
[1743912309714,0.29414375,591.86,591.04,0.28950626]
[1743912309914,0.29414375,591.86,591.05,0.28950626]
[1743912310111,0.29414375,591.86,591.04,0.28950626]
[1743912310312,0.606,591.9,591.04,0.28950626]
[1743912310618,0.29414251,591.85,591.04,0.28950626]
[1743912311720,0.29414251,591.85,591.05,1.26423726]
[1743912312020,0.29414251,591.85,591.06,0.28950626]
[1743912312419,0.29414251,591.85,591.05,1.26423726]
[1743912312619,0.29414251,591.85,591.06,0.28951147]
[1743912313319,0.606,591.9,591.06,0.28951147]
[1743912313517,1.51618276,592.54,591.06,0.28951147]
[1743912313818,0.33754134,592.52,591.06,0.28951147]
[1743912314014,0.33754134,592.52,591.05,1.26423726]
[1743912314214,0.3106205,592.51,591.06,1.55374405]
[1743912314414,0.33755843,592.49,591.06,1.55374405]
[1743912314619,0.3106205,592.48,591.07,0.28950679]
[1743912314819,0.33757553,592.46,591.07,0.28950679]
[1743912315018,0.3106205,592.45,591.07,0.28950679]
[1743912315215,0.33759262,592.43,591.07,0.28950679]
[1743912315421,0.3106205,592.42,591.07,0.28950679]
[1743912315720,0.33760972,592.4,591.07,0.28950679]
[1743912315920,0.33760972,592.4,591.06,1.26423726]
[1743912316122,0.31061723,592.39,591.07,0.28949447]
[1743912316322,0.33762682,592.37,591.12,1.26423726]
[1743912316515,0.31061723,592.36,591.13,0.28949447]
[1743912316718,0.33764392,592.34,591.13,0.28949447]
[1743912316915,0.31061723,592.33,591.13,0.28949447]
[1743912317117,0.33766102,592.31,591.13,0.28949447]
[1743912317316,0.31061723,592.3,591.13,0.28949447]
[1743912317520,0.33767812,592.28,591.12,1.26423726]
[1743912317718,0.31061581,592.27,591.13,0.28949333]
[1743912317916,0.33768952,592.26,591.13,0.28949333]
[1743912318123,0.31061581,592.25,591.13,0.28949333]
[1743912318319,0.33770093,592.24,591.13,0.28949333]
[1743912318521,0.31061581,592.23,591.13,0.28949333]
[1743912318821,0.33771233,592.22,591.13,0.28949333]
[1743912319023,0.31061581,592.21,591.2,1.26423726]
[1743912319222,0.33772374,592.2,591.21,0.28949333]
[1743912319516,0.31061581,592.19,591.21,0.28949333]
[1743912319722,0.33773514,592.18,591.21,0.28949333]
[1743912320925,0.33773514,592.18,591.2,1.26423726]
[1743912321620,0.33773514,592.18,591.14,1.26423726]
[1743912322021,0.33773514,592.18,591.15,0.28949287]
[1743912322625,0.29409155,592.17,591.14,1.26423726]
[1743912322825,0.33774655,592.16,591.15,0.28948854]
[1743912323820,0.33774655,592.16,590.99,0.28948854]
[1743912324022,0.33774655,592.16,591.0,0.28948854]
[1743912324321,0.33774655,592.16,591.01,0.28948854]
[1743912324527,0.33774655,592.16,590.99,0.28948854]
[1743912324727,0.33774655,592.16,591.0,0.28948854]
[1743912324928,0.33774655,592.16,590.99,0.28948854]
[1743912325626,0.29411516,592.15,590.99,0.28948854]
[1743912325826,0.33775796,592.14,590.99,0.28948854]
[1743912326025,0.33775796,592.14,590.98,1.26423726]
[1743912326227,0.33775796,592.14,590.99,0.28949141]
[1743912327633,0.33775796,592.14,590.98,1.26423726]
[1743912327833,0.33775796,592.14,590.99,0.28952655]
[1743912328535,0.33775796,592.14,590.97,0.28952655]
[1743912328737,0.29411765,592.13,590.97,0.28952655]
[1743912328933,0.33776937,592.12,590.97,0.28952655]
[1743912329334,0.33776937,592.12,590.96,1.55835491]
[1743912329538,0.33776937,592.12,590.97,0.28955658]
[1743912331041,0.33776937,592.12,590.96,1.55835491]
[1743912331235,0.33776937,592.12,590.97,0.28955112]
[1743912331640,0.29412262,592.11,590.97,0.28955112]
[1743912331940,0.33778078,592.1,590.97,0.28955112]
[1743912332742,0.33778078,592.1,590.96,1.55835988]
[1743912332937,0.33778078,592.1,590.97,0.28954975]
[1743912333743,0.33778078,592.1,591.17,1.26423726]
[1743912333938,0.33778078,592.1,591.18,0.28954975]
[1743912334445,0.31063233,592.09,591.19,0.28955926]
[1743912334745,0.33779219,592.08,591.2,0.28955926]
[1743912334946,0.33779219,592.08,591.18,0.28955926]
[1743912336145,0.33779219,592.08,591.17,1.26423726]
[1743912336441,0.33779219,592.08,591.18,0.28957256]
[1743912336646,0.33216895,592.08,591.18,0.28957256]
[1743912336848,0.33216895,592.08,591.19,0.28957256]
[1743912337143,0.33216895,592.08,591.2,0.28957256]
[1743912337347,0.33216895,592.08,591.21,0.28957256]
[1743912337647,0.29410398,592.07,591.22,0.28957256]
[1743912337846,0.29410398,592.07,591.23,0.28957256]
[1743912338146,0.29410398,592.07,591.24,0.28957256]
[1743912338446,0.29410398,592.07,591.25,0.28957256]
[1743912338647,0.29410398,592.07,591.16,0.28957256]
[1743912338846,0.29410398,592.07,591.17,0.28957256]
[1743912339049,0.29410398,592.07,591.18,0.28957256]
[1743912339247,0.29410398,592.07,591.16,0.28957256]
[1743912339441,0.29410398,592.07,591.17,0.28928923]
[1743912339642,0.29410398,592.07,591.08,0.28928923]
[1743912339841,0.29410398,592.07,591.09,0.28928923]
[1743912340142,0.29410398,592.07,591.1,0.28928923]
[1743912340343,0.33216895,592.08,591.08,0.28928923]
[1743912340542,0.33216895,592.08,591.09,0.28928923]
[1743912340847,0.29411516,592.06,591.1,0.28928923]
[1743912341044,0.29411516,592.06,591.08,0.28928923]
[1743912341241,0.29411516,592.06,591.09,0.28928923]
[1743912341445,0.29411516,592.06,591.08,0.28928923]
[1743912341743,0.29411516,592.06,591.09,0.28928923]
[1743912341946,0.29411516,592.06,591.08,0.28928923]
[1743912342142,0.29411516,592.06,591.09,0.28928923]
[1743912342446,0.29411516,592.06,591.1,0.28928923]
[1743912342642,0.29411516,592.06,591.08,0.28928923]
[1743912343347,0.33216895,592.08,591.08,0.28928923]
[1743912343643,0.29411516,592.05,591.08,0.28928923]
[1743912346350,0.33216895,592.08,591.08,0.28928923]
[1743912346645,0.29411516,592.04,591.08,0.28928923]
[1743912347151,0.29411516,592.04,591.08,1.55352649]
[1743912347448,0.29411516,592.04,591.09,0.28928923]
[1743912347750,0.29411516,592.04,591.08,1.26423726]
[1743912347950,0.29411516,592.04,591.09,0.28922559]
[1743912349449,0.33216895,592.08,591.09,0.28922559]
[1743912349651,0.29411392,592.03,591.09,0.28922559]
[1743912351152,0.29411392,592.03,591.15,1.26423726]
[1743912351352,0.29411392,592.03,591.16,0.28922559]
[1743912352351,0.33216895,592.08,591.16,0.28922559]
[1743912352751,0.33216895,592.08,591.15,1.26423726]
[1743912353051,0.33216895,592.08,591.16,0.28911186]
[1743912353751,0.29408161,592.07,591.16,0.28911186]
[1743912354454,0.29408161,592.07,591.15,1.26423726]
[1743912354648,0.29408161,592.07,591.16,0.28908737]
[1743912355349,0.33216895,592.08,591.16,0.28908737]
[1743912356658,0.29408161,592.07,591.16,0.28908737]
[1743912358354,0.33216895,592.08,591.16,0.28908737]
[1743912359655,0.29408161,592.07,591.16,0.28908737]
[1743912361456,0.33216895,592.08,591.16,0.28908737]
[1743912362453,0.33216895,592.08,591.15,1.26423726]
[1743912362651,0.29408161,592.07,591.16,0.28900751]
[1743912363355,0.29408161,592.07,591.16,1.55324477]
[1743912363555,0.29408161,592.07,591.17,0.28900751]
[1743912364554,0.33216895,592.08,591.17,0.28900751]
[1743912365651,0.29406918,592.07,591.17,1.55324477]
[1743912365854,0.29406918,592.07,591.18,0.28900751]
[1743912367351,0.33216895,592.08,591.18,0.28900751]
[1743912368553,0.29408906,592.07,591.18,0.28900751]
[1743912368961,0.29408906,592.07,591.13,0.28900751]
[1743912369259,0.29408906,592.07,591.12,1.26423726]
[1743912369454,0.29408906,592.07,591.13,0.28920645]
[1743912370360,0.33216895,592.08,591.13,0.28920645]
[1743912370662,0.29410895,592.06,591.13,0.28920645]
[1743912371157,0.29410895,592.06,591.14,1.26423726]
[1743912371361,0.29410895,592.06,591.15,0.28920645]
[1743912373258,0.33216895,592.08,591.13,0.28920645]
[1743912373465,0.33216895,592.08,591.14,0.28920645]
[1743912373660,0.33216895,592.08,591.13,0.28920645]
[1743912373860,0.33216895,592.08,591.14,0.28920645]
[1743912374062,0.33216895,592.08,591.13,0.28920645]
[1743912374558,0.29409528,592.07,591.13,0.28920645]
[1743912375462,0.29409528,592.07,591.14,0.28920645]
[1743912375659,0.29409528,592.07,591.1,0.28920645]
[1743912375865,0.29409528,592.07,591.11,0.28920645]
[1743912376166,0.29409528,592.07,591.12,0.28920645]
[1743912376461,0.33216895,592.08,591.13,0.28920645]
[1743912376666,0.29411268,592.06,591.1,0.28920645]
[1743912378963,0.29411268,592.06,591.12,1.26423726]
[1743912379262,0.29411268,592.06,591.13,0.28920645]
[1743912379481,0.33216895,592.08,591.13,0.28920645]
[1743912379668,0.29410895,592.05,591.13,0.28920645]
[1743912381467,0.29410895,592.05,591.06,0.28920645]
[1743912382368,0.33216895,592.08,591.06,0.28920645]
[1743912382669,0.29411765,592.04,591.06,0.28920645]
[1743912383368,0.29411765,592.04,591.04,0.28920645]
[1743912383563,0.29411765,592.04,591.05,0.28920645]
[1743912383767,0.29411765,592.04,591.04,0.28920645]
[1743912383968,0.29411765,592.04,591.05,0.28920645]
[1743912384168,0.29411765,592.04,591.06,0.28920645]
[1743912384368,0.29411765,592.04,591.04,0.28920645]
[1743912384569,0.29411765,592.04,591.07,0.28920645]
[1743912384769,0.29411765,592.04,591.08,0.28920645]
[1743912384972,0.29411765,592.04,591.09,0.28919857]
[1743912385265,0.29411765,592.04,591.04,0.28919857]
[1743912385469,0.33216895,592.08,591.05,0.28919857]
[1743912385672,0.29412013,592.03,591.04,0.28919857]
[1743912385969,0.29412013,592.03,591.01,1.26423726]
[1743912386170,0.29412013,592.03,591.02,0.28917896]
[1743912387472,0.29412013,592.03,591.01,1.26423726]
[1743912387665,0.29412013,592.03,591.02,0.28917184]
[1743912388472,0.33216895,592.08,591.02,0.28917184]
[1743912388674,0.29412262,592.02,591.02,0.28917184]
[1743912389074,0.29412262,592.02,591.01,1.26423726]
[1743912389274,0.29412262,592.02,591.02,0.28918793]
[1743912390377,0.542,592.01,591.02,0.28918793]
[1743912390775,0.542,592.01,591.06,1.26423726]
[1743912390971,0.542,592.01,591.07,0.28914817]
[1743912391575,0.29412386,592.0,591.07,0.28914817]
[1743912392477,0.29412386,592.0,591.08,0.28917146]
[1743912392677,0.29412386,592.0,591.07,0.28917146]
[1743912392878,0.29412386,592.0,591.08,0.28917146]
[1743912393076,0.29412386,592.0,591.09,1.26423726]
[1743912393280,0.29412386,592.0,591.1,0.28917146]
[1743912393980,0.29412386,592.0,591.09,1.26423726]
[1743912394181,0.29412386,592.0,591.11,0.28917757]
[1743912394384,0.542,592.01,591.12,0.28917757]
[1743912394581,0.542,592.01,591.1,0.28917757]
[1743912394775,0.29412138,591.99,591.11,0.28917757]
[1743912394979,0.29412138,591.99,591.1,0.28917757]
[1743912395177,0.29412138,591.99,591.11,0.28917757]
[1743912395483,0.29412138,591.99,591.17,1.26423726]
[1743912395784,0.29412138,591.99,591.18,0.28917757]
[1743912397279,0.542,592.01,591.18,0.28917757]
[1743912398685,0.29410273,592.0,591.18,0.28917757]
[1743912399486,0.29410273,592.0,591.18,1.55341483]
[1743912399684,0.29410273,592.0,591.19,0.28917757]
[1743912400282,0.542,592.01,591.19,0.28917757]
[1743912400586,0.29411019,591.99,591.19,0.28917757]
[1743912402291,0.29411019,591.99,591.12,0.28917757]
[1743912402492,0.29411019,591.99,591.13,0.28917757]
[1743912402692,0.29411019,591.99,591.12,0.28917757]
[1743912402886,0.29411019,591.99,591.13,0.28917757]
[1743912403088,0.29411019,591.99,591.12,0.28917757]
[1743912403291,0.542,592.01,591.13,0.28917757]
[1743912403491,0.542,592.01,591.12,0.28917757]
[1743912403793,0.29411889,591.98,591.11,1.26423726]
[1743912403994,0.29411889,591.98,591.12,0.28914316]
[1743912404692,0.29411889,591.98,591.1,0.28914316]
[1743912404993,0.29411889,591.98,591.11,0.28914316]
[1743912405194,0.29411889,591.98,591.12,0.28914316]
[1743912405390,0.29411889,591.98,591.13,0.28914316]
[1743912405591,0.29411889,591.98,591.14,0.28914316]
[1743912405895,0.29411889,591.98,591.15,0.28914316]
[1743912406092,0.29411889,591.98,591.1,0.28914316]
[1743912406388,0.29411889,591.98,591.11,0.28914316]
[1743912406593,0.29411889,591.98,591.12,0.28914316]
[1743912406787,0.29411889,591.98,591.13,0.28914316]
[1743912406986,0.29411889,591.98,591.07,0.28914316]
[1743912407190,0.29411889,591.98,591.08,0.28914316]
[1743912407387,0.29411889,591.98,591.06,1.26423726]
[1743912407388,0.29411889,591.98,591.07,0.28914316]
[1743912407692,0.724,591.97,591.07,0.28914316]
[1743912408794,0.724,591.97,591.06,1.26423726]
[1743912408994,0.724,591.97,591.08,0.28923507]
[1743912409188,0.724,591.97,591.09,0.28923507]
[1743912409391,0.724,591.97,591.03,0.28923507]
[1743912409589,0.724,591.97,591.04,0.28923507]
[1743912409790,0.724,591.97,591.03,0.28923507]
[1743912409991,0.724,591.97,591.04,0.28923507]
[1743912410190,0.724,591.97,591.03,0.28923507]
[1743912410494,0.724,591.97,591.04,0.28923507]
[1743912410695,0.29414499,591.96,591.05,0.28923507]
[1743912410891,0.29414499,591.96,591.06,0.28923507]
[1743912411097,0.29414499,591.96,591.03,1.55347233]
[1743912411297,0.29414499,591.96,591.04,0.28923507]
[1743912412397,0.724,591.97,591.04,0.28923507]
[1743912412694,0.29414375,591.95,591.04,0.28923507]
[1743912413497,0.29414375,591.95,591.03,0.28923507]
[1743912413700,0.29414375,591.95,591.02,1.26423726]
[1743912413900,0.29414375,591.95,591.03,0.28924363]
[1743912415298,0.724,591.97,591.03,0.28924363]
[1743912415495,0.724,591.97,591.02,1.26423726]
[1743912415701,0.29414748,591.94,591.03,0.28924553]
[1743912416402,0.29414748,591.94,591.03,1.55348279]
[1743912416602,0.29414748,591.94,591.04,0.28924553]
[1743912418303,0.724,591.97,591.04,0.28924553]
[1743912418502,0.33786066,591.96,591.04,0.28924553]
[1743912418701,0.33786066,591.96,591.03,1.26423726]
[1743912418902,0.33786066,591.96,591.04,0.28933168]
[1743912419199,0.33786066,591.96,591.03,1.26423726]
[1743912419602,0.33786066,591.96,590.8,1.26423726]
[1743912419799,0.84418354,591.95,590.81,0.28939783]
[1743912421305,0.55,591.95,590.81,0.28939783]
[1743912421498,0.33787208,591.94,590.81,0.28939783]
[1743912421699,0.6320867,591.94,590.81,0.28939783]
[1743912422405,0.33787778,591.93,590.81,0.28939783]
[1743912422799,0.33787778,591.93,590.82,0.28938064]
[1743912423003,0.33787778,591.93,590.78,0.28938064]
[1743912424601,0.29422457,591.92,590.74,1.5536179]
[1743912424805,0.29422457,591.92,590.77,0.29422457]
[1743912425006,0.29422457,591.92,590.78,0.28938064]
[1743912425207,0.29422457,591.92,590.79,0.28935608]
[1743912425400,0.29422457,591.92,590.78,0.28935608]
[1743912425602,0.3378892,591.91,590.78,0.28935608]
[1743912426707,0.3378892,591.91,590.77,0.29422457]
[1743912426907,0.3378892,591.91,590.8,1.26423726]
[1743912427102,0.3378892,591.91,590.81,0.28935878]
[1743912427706,0.29421836,591.9,590.81,0.28935878]
[1743912428007,0.33790062,591.89,590.81,0.28935878]
[1743912428303,0.33790062,591.89,590.8,1.26423726]
[1743912428502,0.33790062,591.89,590.81,0.28935502]
[1743912429109,0.33790062,591.89,590.82,0.28935577]
[1743912429306,0.33790062,591.89,590.8,0.28935577]
[1743912429506,0.33790062,591.89,590.81,0.28935577]
[1743912429806,0.33790062,591.89,590.8,0.28935577]
[1743912430007,0.33790062,591.89,590.81,0.28935577]
[1743912430204,0.33790062,591.89,590.79,1.26423726]
[1743912430405,0.33790062,591.89,590.8,0.28934457]
[1743912430608,0.29422209,591.88,590.8,0.28934457]
[1743912431309,0.63212842,591.88,590.8,0.28934457]
[1743912431709,0.63212842,591.88,590.81,1.26423726]
[1743912431909,0.63212842,591.88,590.82,0.28934457]
[1743912433309,0.736,591.87,590.82,0.28934457]
[1743912433805,1.03022209,591.87,590.82,0.28934457]
[1743912434004,1.03022209,591.87,590.81,0.28934457]
[1743912435212,1.03022209,591.87,590.8,1.26423726]
[1743912435410,1.03022209,591.87,590.81,0.28934407]
[1743912436311,0.736,591.87,590.81,0.28934407]
[1743912436511,0.736,591.87,590.89,1.26423726]
[1743912436711,0.29422457,591.86,590.9,0.28934407]
[1743912436913,0.29422457,591.86,590.91,0.28934512]
[1743912437211,0.29422457,591.86,590.92,0.28934512]
[1743912437412,0.29422457,591.86,590.9,0.28934512]
[1743912437613,0.29422457,591.86,590.89,1.26423726]
[1743912437614,0.29422457,591.86,590.91,0.28934512]
[1743912437815,0.29422457,591.86,590.92,0.28934512]
[1743912438115,0.29422457,591.86,590.93,0.28934512]
[1743912438309,0.29422457,591.86,590.9,0.28934512]
[1743912438515,0.29422457,591.86,590.94,0.28934512]
[1743912438712,0.29422457,591.86,590.95,0.28934512]
[1743912438917,0.29422457,591.86,590.9,0.28934512]
[1743912439317,0.736,591.87,590.9,0.28934512]
[1743912440619,0.29421338,591.86,590.9,0.28934512]
[1743912441016,0.63213113,591.86,590.9,0.28934512]
[1743912441219,0.33792346,591.85,590.9,0.28934512]
[1743912441415,0.33792346,591.85,590.89,1.26423726]
[1743912441819,0.33792346,591.85,590.86,1.26423726]
[1743912442319,0.33792346,591.85,590.87,0.28956708]
[1743912442619,0.33792346,591.85,590.86,1.26423726]
[1743912442919,0.33792346,591.85,590.87,0.28956745]
[1743912443714,0.29423701,591.84,590.55,0.28956745]
[1743912443917,0.33793487,591.83,590.55,0.33866734]
[1743912444116,0.33793487,591.83,590.56,0.28960864]
[1743912445115,0.33793487,591.83,590.57,0.29428678]
[1743912445316,0.33793487,591.83,590.56,0.28960864]
[1743912445618,0.29428678,591.82,590.57,0.28960864]
[1743912445814,0.3379463,591.81,590.56,0.28960864]
[1743912446720,0.3379463,591.81,590.57,0.29428927]
[1743912446922,0.3379463,591.81,590.58,0.28960422]
[1743912448317,0.799,591.8,590.58,0.28960422]
[1743912448518,0.33795772,591.79,590.59,0.28960742]
[1743912448718,0.33795772,591.79,590.57,0.29428927]
[1743912448919,0.33795772,591.79,590.58,0.28960742]
[1743912450022,0.82,591.78,590.58,0.28960742]
[1743912450221,0.33796914,591.77,590.57,0.29428927]
[1743912450419,0.33796914,591.77,590.58,0.28960682]
[1743912451526,0.33796914,591.77,590.56,0.28960682]
[1743912451726,0.29429424,591.76,590.57,0.29429424]
[1743912451927,0.29429424,591.76,590.58,0.28960568]
[1743912453130,0.33798056,591.75,590.58,0.28960568]
[1743912454029,0.33798056,591.75,590.57,0.29429424]
[1743912454226,0.33798056,591.75,590.58,0.28973334]
[1743912454629,0.29432038,591.74,590.57,0.28973334]
[1743912454929,0.33799198,591.73,590.58,0.28973334]
[1743912455131,0.33799198,591.73,590.57,0.28973334]
[1743912455325,0.33799198,591.73,590.58,0.28973334]
[1743912455528,0.33799198,591.73,590.59,0.28973334]
[1743912455726,0.33799198,591.73,590.56,0.58405745]
[1743912455931,0.33799198,591.73,590.57,0.28973334]
[1743912456733,0.33799198,591.73,590.56,0.29432411]
[1743912456932,0.33799198,591.73,590.57,0.28971907]
[1743912457534,0.33799198,591.73,590.56,0.28971907]
[1743912457734,0.33799198,591.73,590.57,0.28971907]
[1743912457930,0.33799198,591.73,590.56,0.28971907]
[1743912458634,0.29431913,591.72,590.56,0.28971907]
[1743912458834,0.33800341,591.71,590.56,0.5840382]
[1743912459135,0.33800341,591.71,590.57,0.28971907]
[1743912460237,0.33800341,591.71,590.58,0.28969285]
[1743912460438,0.33800341,591.71,590.59,0.28969285]
[1743912460640,0.2943266,591.7,590.6,0.28969285]
[1743912460840,0.33801483,591.69,590.57,0.28969285]
[1743912461135,0.33801483,591.69,590.58,0.28969285]
[1743912461336,0.33801483,591.69,590.57,0.28969285]
[1743912461536,0.33801483,591.69,590.58,0.28969285]
[1743912461736,0.33801483,591.69,590.59,0.28969285]
[1743912461937,0.33801483,591.69,590.57,0.28969285]
[1743912462132,0.33801483,591.69,590.58,0.28969285]
[1743912462332,0.33801483,591.69,590.59,0.28969285]
[1743912462539,0.33801483,591.69,590.57,0.28969285]
[1743912462733,0.33801483,591.69,590.58,0.28969285]
[1743912462933,0.33801483,591.69,590.57,0.28969285]
[1743912463138,0.33801483,591.69,590.58,0.28969285]
[1743912463339,0.33801483,591.69,590.57,0.28969285]
[1743912463534,0.33801483,591.69,590.58,0.28969285]
[1743912463733,0.33801483,591.69,590.56,0.58402194]
[1743912463934,0.33801483,591.69,590.57,0.28969285]
[1743912464136,1.03901483,591.69,590.57,0.28969285]
[1743912464633,0.29430544,591.68,590.57,0.28969285]
[1743912466339,1.03901483,591.69,590.57,0.28969285]
[1743912466538,1.03901483,591.69,590.56,0.28969285]
[1743912466739,1.03901483,591.69,590.57,0.28969285]
[1743912466940,1.03901483,591.69,590.58,0.28969285]
[1743912467140,1.88101483,591.69,590.59,0.28969285]
[1743912467338,1.88101483,591.69,590.56,0.28969285]
[1743912467538,1.88101483,591.69,590.57,0.62834872]
[1743912467739,0.29427807,591.68,590.58,0.28969285]
[1743912467936,0.29427807,591.68,590.59,0.3386444]
[1743912468239,0.29427807,591.68,590.6,0.28969285]
[1743912468538,0.29427807,591.68,590.61,0.33863293]
[1743912468843,0.29427807,591.68,590.62,0.28969285]
[1743912469043,0.29427807,591.68,590.63,0.33862147]
[1743912469241,0.29427807,591.68,590.64,0.28969285]
[1743912469441,1.88101483,591.69,590.65,0.33861]
[1743912469641,1.88101483,591.69,590.66,0.28969285]
[1743912469840,1.88101483,591.69,590.66,0.62829712]
[1743912470040,1.88101483,591.69,590.67,0.28969285]
[1743912470742,0.29426438,591.68,590.67,0.28969285]
[1743912471640,0.29426438,591.68,590.66,0.33860427]
[1743912471839,0.29426438,591.68,590.67,0.28945965]
[1743912472345,1.88101483,591.69,590.67,0.28945965]
[1743912472645,0.29426438,591.67,590.67,0.28945965]
[1743912475353,1.88101483,591.69,590.67,0.28945965]
[1743912475654,0.29426438,591.66,590.67,0.28945965]
[1743912476646,0.29426438,591.66,590.66,0.33860427]
[1743912476855,0.29426438,591.66,590.67,0.28943196]
[1743912477952,0.29426438,591.66,590.69,1.26423726]
[1743912478152,0.29426438,591.66,590.7,0.28943196]
[1743912478353,1.88101483,591.69,590.7,0.28943196]
[1743912478747,0.29426065,591.65,590.7,0.28943196]
[1743912479354,0.29426065,591.65,590.69,1.26423726]
[1743912479555,0.29426065,591.65,590.7,0.28943336]
[1743912479948,0.29426065,591.65,590.7,0.6280147]
[1743912480150,0.29426065,591.65,590.71,0.28943336]
[1743912481254,0.29426065,591.65,590.7,0.33858134]
[1743912481454,1.88101483,591.69,590.71,0.28936007]
[1743912481650,0.29425194,591.66,590.71,0.28936007]
[1743912482957,0.29425194,591.66,590.72,0.28935762]
[1743912483155,0.29425194,591.66,590.71,0.28935762]
[1743912483455,0.29425194,591.66,590.72,0.28935762]
[1743912483756,0.29425194,591.66,590.71,0.28935762]
[1743912484157,0.29425194,591.66,590.73,1.26423726]
[1743912484456,1.88101483,591.69,590.74,0.28935762]
[1743912484650,0.29424572,591.66,590.75,0.28935029]
[1743912484852,0.29424572,591.66,590.76,0.28935029]
[1743912485054,0.29424572,591.66,590.74,0.28935029]
[1743912485254,0.29424572,591.66,590.75,0.28935029]
[1743912485555,0.29424572,591.66,590.76,0.28935029]
[1743912485754,0.29424572,591.66,590.74,0.28935029]
[1743912485958,0.29424572,591.66,590.75,0.28935029]
[1743912486155,0.29424572,591.66,590.74,0.28935029]
[1743912486552,0.29424572,591.66,590.75,1.26423726]
[1743912486858,0.29424572,591.66,590.76,0.28935029]
[1743912487357,1.18001483,591.69,590.76,0.28935029]
[1743912488660,0.29424323,591.68,590.76,0.28935029]
[1743912489560,0.828,591.67,590.75,1.26423726]
[1743912489759,0.828,591.67,590.76,0.28934885]
[1743912490654,0.828,591.67,590.76,1.55358611]
[1743912490958,0.29424572,591.66,590.77,0.28934885]
[1743912492755,0.29424572,591.66,590.76,1.26423726]
[1743912492962,0.29424572,591.66,590.77,0.28934627]
[1743912493361,0.828,591.67,590.77,0.28934627]
[1743912493661,0.29424448,591.66,590.77,0.28934627]
[1743912494361,0.29424448,591.66,590.82,1.26423726]